fUSD/lending_fUSD_20260510
["ID","MTS","AMOUNT","RATE_DAILY","PERIOD"]
[421968363,1778377856000,-795.97,0.0004179,120]
[421968362,1778377856000,-795.97,0.0004179,120]
[421968365,1778377856000,-795.97,0.0004179,120]
[421968339,1778377856000,-193.51900222,0.0004179,120]
[421968354,1778377856000,-795.97,0.0004179,120]
[421968337,1778377856000,-186.75414218,0.0004179,120]
[421968313,1778377856000,-174.37154733,0.0004179,120]
[421968332,1778377856000,-165.25207309,0.0004179,120]
[421968308,1778377856000,-304.26498734,0.0004179,120]
[421968310,1778377856000,-166.58973756,0.0004179,120]
[421968311,1778377856000,-155.38338173,0.0004179,120]
[421968309,1778377856000,-198.70079373,0.0004179,120]
[421968307,1778377856000,-500.0,0.0004179,120]
[421968312,1778377856000,-174.83132228,0.0004179,120]
[421968314,1778377856000,-173.9254235,0.0004179,120]
[421968315,1778377856000,-500.0,0.0004179,2]
[421968316,1778377856000,-500.0,0.0004179,2]
[421968322,1778377856000,-500.0,0.0004179,2]
[421968324,1778377856000,-314.44285029,0.0004179,2]
[421968323,1778377856000,-500.0,0.0004179,2]
[421968320,1778377856000,-500.0,0.0004179,2]
[421968321,1778377856000,-500.0,0.0004179,2]
[421968319,1778377856000,-500.0,0.0004179,2]
[421968318,1778377856000,-500.0,0.0004179,2]
[421968317,1778377856000,-500.0,0.0004179,2]
[421968325,1778377856000,-478.75,0.0004179,30]
[421968327,1778377856000,-156.25478204,0.0004179,120]
[421968329,1778377856000,-502.82355772,0.0004179,120]
[421968326,1778377856000,-350.42,0.0004179,30]
[421968330,1778377856000,-21966.0,0.0004179,30]
[421968333,1778377856000,-500.0,0.0004179,120]
[421968331,1778377856000,-162.47386783,0.0004179,120]
[421968335,1778377856000,-500.0,0.0004179,120]
[421968336,1778377856000,-598.35715628,0.0004179,120]
[421968328,1778377856000,-500.0,0.0004179,120]
[421968334,1778377856000,-500.0,0.0004179,120]
[421968376,1778377856000,-500.0,0.0004179,120]
[421968416,1778377856000,-2220.48,0.0004179,120]
[421968371,1778377856000,-197.57992724,0.0004179,120]
[421968399,1778377856000,-2220.48,0.0004179,120]
[421968393,1778377856000,-166.10461055,0.0004179,120]
[421968408,1778377856000,-2220.48,0.0004179,120]
[421968412,1778377856000,-2220.48,0.0004179,120]
[421968405,1778377856000,-500.0,0.0004179,120]
[421968411,1778377856000,-2220.48,0.0004179,120]
[421968406,1778377856000,-2220.48,0.0004179,120]
[421968410,1778377856000,-2220.48,0.0004179,120]
[421968414,1778377856000,-2220.48,0.0004179,120]
[421968404,1778377856000,-2220.48,0.0004179,120]
[421968407,1778377856000,-462.06088352,0.0004179,120]
[421968403,1778377856000,-500.0,0.0004179,120]
[421968413,1778377856000,-2220.48,0.0004179,120]
[421968420,1778377856000,-157.08048883,0.0004179,120]
[421968421,1778377856000,-2220.48,0.0004179,120]
[421968417,1778377856000,-2220.48,0.0004179,120]
[421968415,1778377856000,-157.33541527,0.0004179,120]
[421968418,1778377856000,-500.0,0.0004179,120]
[421968423,1778377856000,-2220.48,0.0004179,120]
[421968419,1778377856000,-2220.48,0.0004179,120]
[421968422,1778377856000,-2220.48,0.0004179,120]
[421968424,1778377856000,-2220.48,0.0004179,120]
[421968425,1778377856000,-2220.48,0.0004179,120]
[421968428,1778377856000,-2220.59986466,0.0004179,120]
[421968427,1778377856000,-2220.48,0.0004179,120]
[421968426,1778377856000,-2220.48,0.0004179,120]
[421968366,1778377856000,-795.97,0.0004179,120]
[421968394,1778377856000,-1123.67359714,0.0004179,30]
[421968397,1778377856000,-212.92379022,0.0004179,14]
[421968409,1778377856000,-2220.48,0.0004179,120]
[421968391,1778377856000,-101542.0,0.0004179,120]
[421968367,1778377856000,-795.97,0.0004179,120]
[421968402,1778377856000,-2220.48,0.0004179,120]
[421968369,1778377856000,-796.15711277,0.0004179,120]
[421968364,1778377856000,-795.97,0.0004179,120]
[421968368,1778377856000,-795.97,0.0004179,120]
[421968374,1778377856000,-167.66917909,0.0004179,120]
[421968370,1778377856000,-207.68077452,0.0004179,120]
[421968372,1778377856000,-159.06366364,0.0004179,120]
[421968373,1778377856000,-221.59049564,0.0004179,120]
[421968379,1778377856000,-190.296059,0.0004179,120]
[421968378,1778377856000,-438.10821972,0.0004179,120]
[421968380,1778377856000,-189.08315378,0.0004179,120]
[421968383,1778377856000,-201.76877982,0.0004179,90]
[421968385,1778377856000,-500.0,0.0004179,120]
[421968377,1778377856000,-500.0,0.0004179,120]
[421968384,1778377856000,-500.0,0.0004179,120]
[421968392,1778377856000,-1119.0,0.0004179,30]
[421968382,1778377856000,-524.14386103,0.0004179,120]
[421968401,1778377856000,-2220.48,0.0004179,120]
[421968395,1778377856000,-312.15118326,0.0004179,120]
[421968398,1778377856000,-172.21028398,0.0004179,120]
[421968389,1778377856000,-573.85299867,0.0004179,120]
[421968400,1778377856000,-2220.48,0.0004179,120]
[421968396,1778377856000,-500.0,0.0004179,14]
[421968387,1778377856000,-500.0,0.0004179,120]
[421968386,1778377856000,-500.0,0.0004179,120]
[421968388,1778377856000,-500.0,0.0004179,120]
[421968381,1778377856000,-500.0,0.0004179,120]
[421968390,1778377856000,-224.02046512,0.0004179,120]
[421968471,1778377857000,-500.0,0.0004179,14]
[421968476,1778377857000,-639.67,0.0004179,30]
[421968468,1778377857000,-500.0,0.0004179,14]
[421968472,1778377857000,-500.0,0.0004179,14]
[421968469,1778377857000,-500.0,0.0004179,14]
[421968467,1778377857000,-500.0,0.0004179,14]
[421968465,1778377857000,-500.0,0.0004179,14]
[421968464,1778377857000,-500.0,0.0004179,14]
[421968463,1778377857000,-535.57401368,0.0004179,120]
[421968457,1778377857000,-500.0,0.0004179,120]
[421968474,1778377857000,-500.0,0.0004179,14]
[421968466,1778377857000,-500.0,0.0004179,14]
[421968475,1778377857000,-610.9822288,0.0004179,14]
[421968497,1778377857000,-2207.95,0.0004179,30]
[421968477,1778377857000,-157.90120021,0.0004179,120]
[421968473,1778377857000,-500.0,0.0004179,14]
[421968478,1778377857000,-2207.95,0.0004179,30]
[421968479,1778377857000,-2207.95,0.0004179,30]
[421968480,1778377857000,-2207.95,0.0004179,30]
[421968481,1778377857000,-2207.95,0.0004179,30]
[421968484,1778377857000,-250.56023088,0.0004179,120]
[421968482,1778377857000,-2207.95,0.0004179,30]
[421968485,1778377857000,-2207.95,0.0004179,30]
[421968483,1778377857000,-2207.95,0.0004179,30]
[421968486,1778377857000,-2207.95,0.0004179,30]
[421968488,1778377857000,-2207.95,0.0004179,30]
[421968456,1778377857000,-500.0,0.0004179,120]
[421968470,1778377857000,-500.0,0.0004179,14]
[421968460,1778377857000,-168.74685244,0.0004179,120]
[421968429,1778377857000,-150000.0,0.0004179,30]
[421968452,1778377857000,-200.0,0.0004179,120]
[421968498,1778377857000,-2207.95,0.0004179,30]
[421968436,1778377857000,-250.56023092,0.0004179,120]
[421968431,1778377857000,-150000.0,0.0004179,40]
[421968435,1778377857000,-250.56023092,0.0004179,120]
[421968437,1778377857000,-250.56023092,0.0004179,120]
[421968434,1778377857000,-250.56023092,0.0004179,120]
[421968430,1778377857000,-886.0,0.0004179,120]
[421968438,1778377857000,-250.56023092,0.0004179,120]
[421968433,1778377857000,-250.56023092,0.0004179,120]
[421968440,1778377857000,-382.06552522,0.0004179,120]
[421968448,1778377857000,-200.0,0.0004179,120]
[421968451,1778377857000,-200.0,0.0004179,120]
[421968449,1778377857000,-200.0,0.0004179,120]
[421968455,1778377857000,-200.0,0.0004179,120]
[421968439,1778377857000,-150000.0,0.0004179,50]
[421968444,1778377857000,-155.0,0.0004179,120]
[421968443,1778377857000,-291.88022302,0.0004179,120]
[421968446,1778377857000,-200.0,0.0004179,120]
[421968441,1778377857000,-500.0,0.0004179,120]
[421968447,1778377857000,-200.0,0.0004179,120]
[421968445,1778377857000,-157.15045164,0.0004179,120]
[421968442,1778377857000,-500.0,0.0004179,120]
[421968453,1778377857000,-978.0,0.0004179,120]
[421968454,1778377857000,-200.0,0.0004179,120]
[421968459,1778377857000,-500.0,0.0004179,120]
[421968462,1778377857000,-500.0,0.0004179,120]
[421968458,1778377857000,-639.67,0.0004179,30]
[421968461,1778377857000,-163.2025923,0.0004179,120]
[421968450,1778377857000,-200.0,0.0004179,120]
[421968495,1778377857000,-2207.95,0.0004179,30]
[421968432,1778377857000,-250.56023092,0.0004179,120]
[421968496,1778377857000,-2207.95,0.0004179,30]
[421968526,1778377857000,-500.0,0.0004179,120]
[421968527,1778377857000,-500.0,0.0004179,120]
[421968528,1778377857000,-500.0,0.0004179,120]
[421968524,1778377857000,-541.82107845,0.0004179,120]
[421968535,1778377857000,-500.0,0.0004179,120]
[421968531,1778377857000,-500.0,0.0004179,120]
[421968530,1778377857000,-500.0,0.0004179,120]
[421968529,1778377857000,-500.0,0.0004179,120]
[421968537,1778377857000,-500.0,0.0004179,120]
[421968534,1778377857000,-500.0,0.0004179,120]
[421968532,1778377857000,-500.0,0.0004179,120]
[421968533,1778377857000,-500.0,0.0004179,120]
[421968539,1778377857000,-521.56670116,0.0004179,120]
[421968525,1778377857000,-241.51682366,0.0004179,120]
[421968550,1778377857000,-638.79,0.0004179,30]
[421968548,1778377857000,-333.15005324,0.0004179,120]
[421968549,1778377857000,-647.91,0.0004179,30]
[421968538,1778377857000,-500.0,0.0004179,120]
[421968540,1778377857000,-280.70787609,0.0004179,2]
[421968542,1778377857000,-485.7,0.0004179,30]
[421968543,1778377857000,-10000.0,0.0004179,120]
[421968545,1778377857000,-10000.0,0.0004179,120]
[421968546,1778377857000,-10000.0,0.0004179,120]
[421968541,1778377857000,-639.67,0.0004179,30]
[421968544,1778377857000,-10000.0,0.0004179,120]
[421968551,1778377857000,-639.67,0.0004179,30]
[421968552,1778377857000,-200.51440962,0.0004179,120]
[421968494,1778377857000,-2207.95,0.0004179,30]
[421968547,1778377857000,-10000.0,0.0004179,120]
[421968521,1778377857000,-613.50188241,0.0004179,12]
[421968536,1778377857000,-500.0,0.0004179,120]
[421968520,1778377857000,-500.0,0.0004179,12]
[421968519,1778377857000,-500.0,0.0004179,12]
[421968489,1778377857000,-2207.95,0.0004179,30]
[421968493,1778377857000,-2207.95,0.0004179,30]
[421968491,1778377857000,-2207.95,0.0004179,30]
[421968487,1778377857000,-2207.95,0.0004179,30]
[421968490,1778377857000,-2207.95,0.0004179,30]
[421968502,1778377857000,-2208.04353482,0.0004179,30]
[421968499,1778377857000,-2207.95,0.0004179,30]
[421968506,1778377857000,-167.13606771,0.0004179,120]
[421968507,1778377857000,-550.23710669,0.0004179,120]
[421968504,1778377857000,-167.30085585,0.0004179,120]
[421968503,1778377857000,-156.73197831,0.0004179,120]
[421968505,1778377857000,-597.93528183,0.0004179,120]
[421968500,1778377857000,-2207.95,0.0004179,30]
[421968492,1778377857000,-2207.95,0.0004179,30]
[421968510,1778377857000,-639.67,0.0004179,30]
[421968501,1778377857000,-2207.95,0.0004179,30]
[421968518,1778377857000,-500.0,0.0004179,12]
[421968514,1778377857000,-500.0,0.0004179,12]
[421968515,1778377857000,-500.0,0.0004179,12]
[421968513,1778377857000,-500.0,0.0004179,12]
[421968522,1778377857000,-500.0,0.0004179,120]
[421968516,1778377857000,-500.0,0.0004179,12]
[421968523,1778377857000,-500.0,0.0004179,120]
[421968511,1778377857000,-500.0,0.0004179,12]
[421968512,1778377857000,-500.0,0.0004179,12]
[421968509,1778377857000,-639.67,0.0004179,30]
[421968508,1778377857000,-478.94,0.0004179,30]
[421968517,1778377857000,-500.0,0.0004179,12]
[421968592,1778377858000,-1000.0,0.0004179,120]
[421968590,1778377858000,-1000.0,0.0004179,120]
[421968594,1778377858000,-1000.0,0.0004179,120]
[421968581,1778377858000,-1000.0,0.0004179,120]
[421968602,1778377858000,-1000.0,0.0004179,120]
[421968589,1778377858000,-1000.0,0.0004179,120]
[421968591,1778377858000,-1000.0,0.0004179,120]
[421968587,1778377858000,-1000.0,0.0004179,120]
[421968586,1778377858000,-1000.0,0.0004179,120]
[421968588,1778377858000,-1000.0,0.0004179,120]
[421968593,1778377858000,-1000.0,0.0004179,120]
[421968601,1778377858000,-1000.0,0.0004179,120]
[421968595,1778377858000,-1000.0,0.0004179,120]
[421968606,1778377858000,-1000.0,0.0004179,120]
[421968596,1778377858000,-1000.0,0.0004179,120]
[421968597,1778377858000,-1000.0,0.0004179,120]
[421968598,1778377858000,-1000.0,0.0004179,120]
[421968599,1778377858000,-1000.0,0.0004179,120]
[421968603,1778377858000,-1000.0,0.0004179,120]
[421968605,1778377858000,-1000.0,0.0004179,120]
[421968607,1778377858000,-1000.0,0.0004179,120]
[421968609,1778377858000,-1000.0,0.0004179,120]
[421968611,1778377858000,-1000.0,0.0004179,120]
[421968608,1778377858000,-1000.0,0.0004179,120]
[421968612,1778377858000,-1000.0,0.0004179,120]
[421968613,1778377858000,-1000.0,0.0004179,120]
[421968584,1778377858000,-1000.0,0.0004179,120]
[421968600,1778377858000,-1000.0,0.0004179,120]
[421968582,1778377858000,-1000.0,0.0004179,120]
[421968556,1778377858000,-1000.0,0.0004179,120]
[421968585,1778377858000,-1000.0,0.0004179,120]
[421968610,1778377858000,-1000.0,0.0004179,120]
[421968554,1778377858000,-1000.0,0.0004179,120]
[421968553,1778377858000,-1000.0,0.0004179,120]
[421968555,1778377858000,-1000.0,0.0004179,120]
[421968557,1778377858000,-1030.0,0.0004179,120]
[421968558,1778377858000,-1068.11,0.0004179,120]
[421968561,1778377858000,-1191.11104075,0.0004179,120]
[421968559,1778377858000,-1107.63007,0.0004179,120]
[421968560,1778377858000,-1148.61238259,0.0004179,120]
[421968562,1778377858000,-1235.18214925,0.0004179,120]
[421968563,1778377858000,-1280.88388878,0.0004179,120]
[421968565,1778377858000,-1377.42282659,0.0004179,120]
[421968566,1778377858000,-1428.38747117,0.0004179,120]
[421968583,1778377858000,-1000.0,0.0004179,120]
[421968567,1778377858000,-151.0,0.0004179,120]
[421968575,1778377858000,-1000.0,0.0004179,120]
[421968577,1778377858000,-655.17830084,0.0004179,120]
[421968564,1778377858000,-1328.27659266,0.0004179,120]
[421968568,1778377858000,-151.0,0.0004179,120]
[421968572,1778377858000,-1000.0,0.0004179,120]
[421968571,1778377858000,-20000.0,0.0004179,120]
[421968574,1778377858000,-1000.0,0.0004179,120]
[421968569,1778377858000,-500.0,0.0004179,120]
[421968573,1778377858000,-1000.0,0.0004179,120]
[421968570,1778377858000,-529.48978585,0.0004179,120]
[421968579,1778377858000,-1000.0,0.0004179,120]
[421968578,1778377858000,-2964.9573846,0.0004179,60]
[421968580,1778377858000,-1000.0,0.0004179,120]
[421968576,1778377858000,-1000.0,0.0004179,120]
[421968604,1778377858000,-1000.0,0.0004179,120]
[421968615,1778377858000,-1000.0,0.0004179,120]
[421968616,1778377858000,-1000.0,0.0004179,120]
[421968649,1778377858000,-2000.0,0.0004183,7]
[421968648,1778377858000,-242.11431416,0.00041829,30]
[421968651,1778377858000,-282.09787464,0.0004183,30]
[421968653,1778377858000,-200.0,0.0004183,7]
[421968664,1778377858000,-1537.0,0.0004183,30]
[421968652,1778377858000,-200.0,0.0004183,7]
[421968654,1778377858000,-2000.0,0.0004183,120]
[421968655,1778377858000,-2000.0,0.0004183,120]
[421968656,1778377858000,-2000.0,0.0004183,120]
[421968663,1778377858000,-1537.0,0.0004183,30]
[421968658,1778377858000,-2000.0,0.0004183,120]
[421968657,1778377858000,-2000.0,0.0004183,120]
[421968662,1778377858000,-1537.0,0.0004183,30]
[421968660,1778377858000,-1537.0,0.0004183,30]
[421968661,1778377858000,-1537.0,0.0004183,30]
[421968659,1778377858000,-2000.0,0.0004183,120]
[421968667,1778377858000,-1204.70992364,0.0004183,30]
[421968665,1778377858000,-1537.0,0.0004183,30]
[421968668,1778377858000,-151.0,0.0004183,30]
[421968670,1778377858000,-151.0,0.0004183,30]
[421968672,1778377858000,-151.0,0.0004183,30]
[421968669,1778377858000,-151.0,0.0004183,30]
[421968666,1778377858000,-1537.0,0.0004183,30]
[421968674,1778377858000,-193.50224669,0.0004183,30]
[421968675,1778377858000,-152.0,0.0004183,30]
[421968614,1778377858000,-1000.0,0.0004179,120]
[421968673,1778377858000,-151.0,0.0004183,30]
[421968646,1778377858000,-151.0,0.00041827,14]
[421968650,1778377858000,-200.0,0.0004183,7]
[421968671,1778377858000,-151.0,0.0004183,30]
[421968645,1778377858000,-260.6460109,0.00041821,2]
[421968647,1778377858000,-155.40066554,0.00041827,14]
[421968628,1778377858000,-1000.0,0.0004179,120]
[421968625,1778377858000,-1000.0,0.0004179,120]
[421968617,1778377858000,-1000.0,0.0004179,120]
[421968621,1778377858000,-1000.0,0.0004179,120]
[421968620,1778377858000,-1000.0,0.0004179,120]
[421968619,1778377858000,-1000.0,0.0004179,120]
[421968624,1778377858000,-1000.0,0.0004179,120]
[421968623,1778377858000,-1000.0,0.0004179,120]
[421968630,1778377858000,-886.37494262,0.0004179,120]
[421968629,1778377858000,-1000.0,0.0004179,120]
[421968622,1778377858000,-1000.0,0.0004179,120]
[421968627,1778377858000,-1000.0,0.0004179,120]
[421968626,1778377858000,-1000.0,0.0004179,120]
[421968618,1778377858000,-1000.0,0.0004179,120]
[421968633,1778377858000,-159.0,0.0004179,120]
[421968636,1778377858000,-241.29213992,0.0004179,120]
[421968641,1778377858000,-160.0,0.000418,70]
[421968639,1778377858000,-1084.92,0.000418,7]
[421968634,1778377858000,-169.0,0.0004179,120]
[421968631,1778377858000,-154.0,0.0004179,120]
[421968640,1778377858000,-150.0,0.000418,17]
[421968632,1778377858000,-158.0,0.0004179,120]
[421968644,1778377858000,-10419.5404891,0.00041821,2]
[421968637,1778377858000,-1000.0,0.00041795,120]
[421968642,1778377858000,-200.0,0.000418,10]
[421968643,1778377858000,-205.0,0.0004182,7]
[421968638,1778377858000,-417.4,0.000418,14]
[421968635,1778377858000,-230.61,0.0004179,2]
[421968721,1778377859000,-431.23801382,0.0004186,120]
[421968715,1778377859000,-1000.0,0.00041857,15]
[421968713,1778377859000,-1000.0,0.00041857,15]
[421968717,1778377859000,-1000.0,0.00041857,15]
[421968709,1778377859000,-1000.0,0.00041857,15]
[421968712,1778377859000,-1145.60751329,0.00041857,15]
[421968708,1778377859000,-1000.0,0.00041857,15]
[421968706,1778377859000,-1000.0,0.00041857,15]
[421968702,1778377859000,-435.49217466,0.00041832,120]
[421968705,1778377859000,-2585.7478172,0.0004184,2]
[421968710,1778377859000,-1000.0,0.00041857,15]
[421968719,1778377859000,-165.21217631,0.00041857,15]
[421968723,1778377859000,-400.0,0.0004187,3]
[421968716,1778377859000,-1000.0,0.00041857,15]
[421968718,1778377859000,-1000.0,0.00041857,15]
[421968720,1778377859000,-170.5161329,0.00041858,2]
[421968722,1778377859000,-301.86660969,0.0004186,120]
[421968724,1778377859000,-400.0,0.0004187,3]
[421968725,1778377859000,-152.0,0.00041877,30]
[421968737,1778377859000,-7147.84994208,0.000419,30]
[421968726,1778377859000,-2663.75742369,0.0004188,120]
[421968728,1778377859000,-2005.9555727,0.00041888,30]
[421968727,1778377859000,-200.0,0.00041888,120]
[421968736,1778377859000,-9500.0,0.000419,14]
[421968703,1778377859000,-392.30247129,0.00041832,120]
[421968714,1778377859000,-1000.0,0.00041857,15]
[421968711,1778377859000,-1000.0,0.00041857,15]
[421968691,1778377859000,-786.0,0.00041832,60]
[421968704,1778377859000,-211.6686259,0.00041832,120]
[421968733,1778377859000,-150.96,0.00041892,120]
[421968677,1778377859000,-152.0,0.0004183,30]
[421968686,1778377859000,-786.0,0.00041832,60]
[421968676,1778377859000,-152.0,0.0004183,30]
[421968687,1778377859000,-786.0,0.00041832,60]
[421968681,1778377859000,-156.97555839,0.0004183,30]
[421968680,1778377859000,-161.54718026,0.0004183,30]
[421968682,1778377859000,-150.1722909,0.00041832,2]
[421968683,1778377859000,-264.0,0.00041832,60]
[421968679,1778377859000,-152.0,0.0004183,30]
[421968678,1778377859000,-152.0,0.0004183,30]
[421968684,1778377859000,-786.0,0.00041832,60]
[421968707,1778377859000,-1000.0,0.00041857,15]
[421968685,1778377859000,-786.0,0.00041832,60]
[421968696,1778377859000,-150.67336317,0.00041832,120]
[421968699,1778377859000,-150.0,0.00041832,6]
[421968689,1778377859000,-786.0,0.00041832,60]
[421968694,1778377859000,-255.0384141,0.00041832,120]
[421968690,1778377859000,-786.0,0.00041832,60]
[421968697,1778377859000,-304.39705839,0.00041832,120]
[421968698,1778377859000,-216.53393623,0.00041832,120]
[421968693,1778377859000,-157.0,0.00041832,2]
[421968692,1778377859000,-227.0,0.00041832,2]
[421968695,1778377859000,-472.46259,0.00041832,120]
[421968701,1778377859000,-225.29487712,0.00041832,120]
[421968700,1778377859000,-179.02219684,0.00041832,120]
[421968688,1778377859000,-786.0,0.00041832,60]
[421968731,1778377859000,-150.43,0.0004189,120]
[421968771,1778377859000,-254.419702,0.0004197,70]
[421968732,1778377859000,-193.82,0.0004189,2]
[421968764,1778377859000,-1617.68395719,0.0004195,2]
[421968766,1778377859000,-350.0,0.00041966,3]
[421968765,1778377859000,-1934.38338737,0.00041954,30]
[421968773,1778377859000,-250.0,0.00041973,120]
[421968790,1778377859000,-722922.25927221,0.00042,120]
[421968770,1778377859000,-400.0,0.0004197,3]
[421968774,1778377859000,-250.0,0.00041973,120]
[421968768,1778377859000,-484.00243033,0.0004197,3]
[421968772,1778377859000,-1352.34,0.00041972,120]
[421968776,1778377859000,-328.99,0.00041975,2]
[421968767,1778377859000,-300.0,0.0004197,3]
[421968769,1778377859000,-400.0,0.0004197,3]
[421968781,1778377859000,-1734.62772924,0.00041998,30]
[421968779,1778377859000,-1798.80895522,0.00041997,30]
[421968783,1778377859000,-300.0,0.00041999,30]
[421968777,1778377859000,-150.96,0.00041992,120]
[421968778,1778377859000,-1865.36488657,0.00041994,30]
[421968787,1778377859000,-500.0,0.00042,45]
[421968785,1778377859000,-24286.30491817,0.00041999,7]
[421968780,1778377859000,-520.34722443,0.00041998,120]
[421968788,1778377859000,-2500.0,0.00042,120]
[421968786,1778377859000,-358230.15655679,0.00042,49]
[421968784,1778377859000,-666.0,0.00041999,30]
[421968789,1778377859000,-1000.0,0.00042,120]
[421968729,1778377859000,-1200.0,0.00041889,120]
[421968775,1778377859000,-3176.68579881,0.00041975,120]
[421968763,1778377859000,-151.75,0.00041945,120]
[421968782,1778377859000,-300.0,0.00041999,30]
[421968758,1778377859000,-2459.10128312,0.00041926,120]
[421968760,1778377859000,-2459.10128312,0.00041926,120]
[421968730,1778377859000,-500.0,0.00041889,120]
[421968735,1778377859000,-419.38937381,0.000419,20]
[421968738,1778377859000,-1000.0,0.000419,120]
[421968741,1778377859000,-300.0,0.000419,10]
[421968740,1778377859000,-263.82,0.000419,30]
[421968742,1778377859000,-1431.10605503,0.000419,2]
[421968747,1778377859000,-153.74,0.00041917,120]
[421968744,1778377859000,-175.56571433,0.000419,2]
[421968743,1778377859000,-1155.59105616,0.000419,2]
[421968748,1778377859000,-1561.0,0.00041918,120]
[421968739,1778377859000,-441.78566963,0.000419,2]
[421968746,1778377859000,-214.43583534,0.000419,120]
[421968734,1778377859000,-2070.17341717,0.000419,5]
[421968745,1778377859000,-235.59037598,0.000419,8]
[421968749,1778377859000,-2459.10128313,0.00041926,120]
[421968754,1778377859000,-2459.10128312,0.00041926,120]
[421968759,1778377859000,-2459.10128312,0.00041926,120]
[421968755,1778377859000,-2459.10128312,0.00041926,120]
[421968756,1778377859000,-2459.10128312,0.00041926,120]
[421968752,1778377859000,-2459.10128312,0.00041926,120]
[421968753,1778377859000,-2459.10128312,0.00041926,120]
[421968761,1778377859000,-2459.10128312,0.00041926,120]
[421968762,1778377859000,-153.93,0.00041927,120]
[421968751,1778377859000,-2459.10128313,0.00041926,120]
[421968750,1778377859000,-2459.10128313,0.00041926,120]
[421968757,1778377859000,-2459.10128312,0.00041926,120]
[421968807,1778377860000,-162.69,0.00026712,2]
[421968800,1778377860000,-150.0,0.00029601,2]
[421968799,1778377860000,-180.77,0.00026115,2]
[421968798,1778377860000,-828.0,0.00025786,2]
[421968801,1778377860000,-3906.07381794,0.0002999,10]
[421968791,1778377860000,-150.0,0.00041096,120]
[421968796,1778377860000,-24.91931771,0.00021273,2]
[421968794,1778377860000,-276.84064303,0.00042,120]
[421968793,1778377860000,-0.00038314,0.00042,120]
[421968795,1778377860000,-36318.9130019,0.00042,120]
[421968792,1778377860000,-316.6354948,0.00042,120]
[421968802,1778377860000,-162.69,0.00024658,2]
[421968797,1778377860000,-803.08068229,0.00021273,2]
[421968805,1778377860000,-180.77,0.00026345,7]
[421968813,1778377860000,-150.0,0.00035981,2]
[421968803,1778377860000,-162.69,0.00025342,7]
[421968806,1778377860000,-180.77,0.00026575,30]
[421968817,1778377860000,-151.0,0.00039599,30]
[421968816,1778377860000,-151.0,0.00039599,30]
[421968818,1778377860000,-151.0,0.00039599,30]
[421968814,1778377860000,-150.0,0.0003778,2]
[421968815,1778377860000,-518.0,0.0003896,30]
[421968819,1778377860000,-151.0,0.00039599,30]
[421968811,1778377860000,-150.0,0.00034267,2]
[421968810,1778377860000,-150.0,0.00032636,2]
[421968809,1778377860000,-150.0,0.00031081,2]
[421968808,1778377860000,-3071.23618206,0.0002999,10]
[421968804,1778377860000,-162.69,0.00026027,30]
[421968812,1778377860000,-1089.45,0.00035559,2]
[421968826,1778377861000,-164.97511995,0.00041651,120]
[421968830,1778377861000,-5878.536299,0.0004179,14]
[421968829,1778377861000,-722.199432,0.0004179,120]
[421968827,1778377861000,-247.46267992,0.00041651,120]
[421968822,1778377861000,-500.0,0.00040245,21]
[421968833,1778377861000,-151.0,0.0004179,120]
[421968825,1778377861000,-197.38352326,0.00041096,120]
[421968824,1778377861000,-828.0,0.0004029,60]
[421968828,1778377861000,-152.216858,0.0004179,120]
[421968823,1778377861000,-500.0,0.00040245,21]